fUSD/lending_fUSD_20250806
["ID","MTS","AMOUNT","RATE_DAILY","PERIOD"]
[377564770,1754442714712,-2895.81,0.00036712,14]
[377564771,1754442714722,-400.0,0.00036712,14]
[377564772,1754442714732,-400.0,0.00036712,14]
[377564773,1754442714744,-400.0,0.00036712,14]
[377564774,1754442714754,-1220.16,0.00036712,14]
[377564775,1754442714764,-1817.13,0.00036712,14]
[377564776,1754442714774,-400.0,0.00036712,14]
[377564777,1754442714783,-1686.84,0.00036712,14]
[377564778,1754442714793,-918.29,0.00036712,14]
[377564779,1754442714803,-400.0,0.00036712,14]
[377564780,1754442714813,-400.0,0.00036712,14]
[377564781,1754442714823,-2906.26,0.00036712,14]
[377564782,1754442714833,-1831.61,0.00036712,14]
[377564783,1754442714843,-400.0,0.00036712,14]
[377564784,1754442714855,-2072.8,0.00036712,14]
[377564785,1754442714864,-400.0,0.00036712,14]
[377564786,1754442714874,-400.0,0.00036712,14]
[377564787,1754442714885,-1684.07,0.00036712,14]
[377564788,1754442714895,-401.69398677,0.00036712,2]
[377564789,1754442714907,-437.87,0.00036712,14]
[377564790,1754442714917,-400.0,0.00036712,14]
[377564791,1754442714927,-400.0,0.00036712,14]
[377564792,1754442714937,-1285.21,0.00036712,14]
[377564793,1754442714947,-484.61,0.00036712,14]
[377564794,1754442714957,-1327.42,0.00036712,14]
[377564795,1754442714967,-877.04,0.00036712,14]
[377564796,1754442714978,-2588.34,0.00036712,14]
[377564797,1754442714988,-911.75,0.00036712,14]
[377564798,1754442714999,-2933.48,0.00036712,14]
[377564799,1754442715009,-890.81,0.00036712,14]
[377564800,1754442715019,-882.17,0.00036712,14]
[377564801,1754442715030,-400.0,0.00036712,14]
[377564802,1754442715040,-2152.31,0.00036712,14]
[377564803,1754442715050,-1922.57,0.00036712,14]
[377564804,1754442715060,-1093.71,0.00036712,14]
[377564805,1754442715070,-400.0,0.00036712,14]
[377564806,1754442715080,-400.0,0.00036712,14]
[377564807,1754442715090,-2239.45,0.00036712,14]
[377564808,1754442715100,-662.2,0.00036712,2]
[377564809,1754442715110,-1577.92,0.00036712,14]
[377564810,1754442715120,-734.75,0.00036712,14]
[377564811,1754442715131,-1074.63,0.00036712,14]
[377564812,1754442715141,-400.0,0.00036712,14]
[377564813,1754442715154,-400.0,0.00036712,14]
[377564814,1754442715164,-4402.83,0.00036712,14]
[377564815,1754442715174,-400.0,0.00036712,14]
[377564816,1754442715185,-1169.16,0.00036712,14]
[377564817,1754442715195,-500.0,0.00036773,5]
[377564818,1754442715205,-393.77216797,0.00036773,5]
[377564819,1754442715215,-1700.13144921,0.00036886,2]
[377564820,1754442715225,-2281.6,0.000369,14]
[377564821,1754442715238,-600.0,0.000369,13]
[377564822,1754442715248,-152.0,0.00036955,7]
[377564823,1754442715258,-1033.52106174,0.00036968,5]
[377564824,1754442715274,-431.81146785,0.00036968,5]
[377564825,1754442715285,-1500.0,0.00036968,5]
[377564826,1754442715295,-1000.0,0.00036968,5]
[377564827,1754442715305,-400.0,0.00036985,14]
[377564828,1754442715316,-400.0,0.00036985,14]
[377564829,1754442715327,-463.42766712,0.00036985,14]
[377564830,1754442715337,-400.0,0.00036985,14]
[377564831,1754442715347,-344.06234108,0.00036985,14]
[377564832,1754442715357,-400.0,0.00036985,14]
[377564833,1754442715367,-400.0,0.00036985,14]
[377564834,1754442715378,-400.0,0.00036985,14]
[377564835,1754442715388,-400.0,0.00036985,14]
[377564836,1754442715399,-400.0,0.00036985,14]
[377564837,1754442715409,-400.0,0.00036985,14]
[377564838,1754442715419,-400.0,0.00036985,14]
[377564839,1754442715431,-400.0,0.00036985,14]
[377564840,1754442715443,-537.0973233,0.00036985,14]
[377564841,1754442715454,-151.0,0.00036985,7]
[377564842,1754442715464,-412.45,0.00036985,2]
[377564843,1754442715475,-151.0,0.00036986,7]
[377564844,1754442715486,-175.5,0.00036986,7]
[377564845,1754442715496,-175.5,0.00036986,7]
[377564846,1754442715506,-151.0,0.00036986,7]
[377564847,1754442715516,-151.0,0.00036986,7]
[377564848,1754442715526,-235.162385,0.00036986,7]
[377564849,1754442715536,-151.0,0.00036986,7]
[377564850,1754442715548,-151.0,0.00036986,7]
[377564851,1754442715558,-296.634418,0.00036986,7]
[377564852,1754442715568,-151.0,0.00036986,7]
[377564853,1754442715578,-155.636979,0.00036986,7]
[377564854,1754442715588,-653.55,0.00036986,14]
[377564855,1754442715598,-400.0,0.00036986,14]
[377564856,1754442715608,-400.0,0.00036986,14]
[377564857,1754442715618,-1599.79,0.00036986,14]
[377564858,1754442715628,-400.0,0.00036986,14]
[377564859,1754442715638,-400.0,0.00036986,14]
[377564860,1754442715648,-400.0,0.00036986,14]
[377564861,1754442715658,-400.0,0.00036986,14]
[377564862,1754442715668,-400.0,0.00036986,14]
[377564863,1754442715677,-400.0,0.00036986,14]
[377564864,1754442715687,-400.0,0.00036986,14]
[377564865,1754442715697,-714.57,0.00036986,14]
[377564866,1754442715707,-668.76,0.00036986,14]
[377564867,1754442715717,-641.26,0.00036986,14]
[377564868,1754442715731,-494.87,0.00036986,14]
[377564869,1754442715742,-619.09,0.00036986,14]
[377564870,1754442715753,-702.43,0.00036986,14]
[377564871,1754442715763,-636.76,0.00036986,14]
[377564872,1754442715773,-1360.36,0.00036986,14]
[377564873,1754442715784,-151.0,0.00036986,7]
[377564874,1754442715794,-151.0,0.00036986,7]
[377564875,1754442715805,-151.0,0.00036986,7]
[377564876,1754442715815,-1144.8,0.00036986,14]
[377564877,1754442715826,-571.71,0.00036986,14]
[377564878,1754442715838,-1627.65,0.00036986,14]
[377564879,1754442715848,-885.23,0.00036986,14]
[377564880,1754442715861,-591.54,0.00036986,14]
[377564881,1754442715871,-1168.08,0.00036986,14]
[377564882,1754442715881,-468.66,0.00036986,14]
[377564883,1754442715892,-400.0,0.00036986,14]
[377564884,1754442715902,-1669.14,0.00036986,14]
[377564885,1754442715912,-1562.12,0.00036986,14]
[377564886,1754442715923,-400.0,0.00036986,14]
[377564887,1754442715933,-720.08,0.00036986,14]
[377564888,1754442715943,-400.0,0.00036986,14]
[377564889,1754442715954,-400.0,0.00036986,14]
[377564890,1754442715965,-400.0,0.00036986,14]
[377564891,1754442715974,-400.0,0.00036986,14]
[377564892,1754442715985,-400.0,0.00036986,14]
[377564893,1754442715995,-1089.7,0.00036986,14]
[377564894,1754442716004,-490.35,0.00036986,14]
[377564895,1754442716014,-400.0,0.00036986,14]
[377564896,1754442716024,-548.76,0.00036986,14]
[377564897,1754442716034,-749.78,0.00036986,14]
[377564898,1754442716043,-425.6,0.00036986,14]
[377564899,1754442716053,-400.0,0.00036986,14]
[377564900,1754442716063,-400.0,0.00036986,14]
[377564901,1754442716073,-469.53,0.00036986,14]
[377564902,1754442716083,-454.1,0.00036986,14]
[377564903,1754442716093,-462.88,0.00036986,14]
[377564904,1754442716104,-806.86,0.00036986,14]
[377564905,1754442716115,-400.0,0.00036986,14]
[377564906,1754442716131,-836.15,0.00036986,14]
[377564907,1754442716141,-400.0,0.00036986,14]
[377564908,1754442716152,-400.0,0.00036986,14]
[377564909,1754442716167,-413.48,0.00036986,14]
[377564910,1754442716179,-400.0,0.00036986,14]
[377564911,1754442716189,-400.0,0.00036986,14]
[377564912,1754442716200,-895.4,0.00036986,14]
[377564913,1754442716210,-400.0,0.00036986,14]
[377564914,1754442716220,-400.0,0.00036986,14]
[377564915,1754442716231,-400.0,0.00036986,14]
[377564916,1754442716242,-702.19,0.00036986,14]
[377564917,1754442716252,-556.09,0.00036986,14]
[377564918,1754442716262,-400.0,0.00036986,14]
[377564919,1754442716273,-945.13,0.00036986,14]
[377564920,1754442716283,-690.4,0.00036986,14]
[377564921,1754442716293,-814.37,0.00036986,14]
[377564922,1754442716303,-400.0,0.00036986,14]
[377564923,1754442716312,-888.16,0.00036986,14]
[377564924,1754442716323,-790.45,0.00036986,14]
[377564925,1754442716333,-1548.89,0.00036986,14]
[377564926,1754442716343,-400.0,0.00036986,14]
[377564927,1754442716353,-1700.4,0.00036986,14]
[377564928,1754442716362,-400.0,0.00036986,14]
[377564929,1754442716372,-1335.25,0.00036986,14]
[377564930,1754442716382,-1795.56,0.00036986,14]
[377564931,1754442716393,-400.0,0.00036986,14]
[377564932,1754442716404,-565.7,0.00036986,14]
[377564933,1754442716414,-400.0,0.00036986,14]
[377564934,1754442716424,-151.0,0.00036986,7]
[377564935,1754442716434,-1441.51,0.00036986,14]
[377564936,1754442716444,-746.64,0.00036986,14]
[377564937,1754442716455,-1198.41,0.00036986,14]
[377564938,1754442716466,-400.0,0.00036986,14]
[377564939,1754442716476,-400.0,0.00036986,14]
[377564940,1754442716486,-400.38,0.00036986,14]
[377564941,1754442716495,-473.95,0.00036986,14]
[377564942,1754442716505,-400.0,0.00036986,14]
[377564943,1754442716515,-705.48,0.00036986,14]
[377564944,1754442716525,-400.0,0.00036986,14]
[377564945,1754442716875,-1109.3,0.00036986,14]
[377564946,1754442716886,-400.0,0.00036986,14]
[377564947,1754442716897,-400.0,0.00036986,14]
[377564948,1754442716907,-400.0,0.00036986,14]
[377564949,1754442716916,-676.32,0.00036986,14]
[377564950,1754442716926,-435.15,0.00036986,14]
[377564951,1754442716935,-1083.01,0.00036986,14]
[377564952,1754442716945,-400.0,0.00036986,14]
[377564953,1754442716955,-618.68,0.00036986,14]
[377564954,1754442716965,-400.0,0.00036986,14]
[377564955,1754442716974,-923.51,0.00036986,14]
[377564956,1754442716984,-2053.3,0.00036986,14]
[377564957,1754442716993,-556.6,0.00036986,14]
[377564958,1754442717003,-400.0,0.00036986,14]
[377564959,1754442717012,-400.0,0.00036986,14]
[377564960,1754442717022,-1815.69,0.00036986,14]
[377564961,1754442717032,-400.0,0.00036986,14]
[377564962,1754442717041,-400.0,0.00036986,14]
[377564963,1754442717051,-713.06,0.00036986,14]
[377564964,1754442717060,-1040.29,0.00036986,14]
[377564965,1754442717069,-400.0,0.00036986,14]
[377564966,1754442717079,-400.0,0.00036986,14]
[377564967,1754442717089,-400.0,0.00036986,14]
[377564968,1754442717098,-516.14,0.00036986,14]
[377564969,1754442717107,-400.0,0.00036986,14]
[377564970,1754442717117,-400.0,0.00036986,14]
[377564971,1754442717126,-400.0,0.00036986,14]
[377564972,1754442717136,-400.0,0.00036986,14]
[377564973,1754442717145,-400.0,0.00036986,14]
[377564974,1754442717154,-400.0,0.00036986,14]
[377564975,1754442717164,-400.0,0.00036986,14]
[377564976,1754442717174,-1588.96,0.00036986,14]
[377564977,1754442717183,-400.0,0.00036986,14]
[377564978,1754442717193,-501.29,0.00036986,14]
[377564979,1754442717203,-227.20091253,0.00036986,14]
[377564980,1754442717212,-400.0,0.00036986,14]
[377564981,1754442717221,-400.0,0.00036986,14]
[377564982,1754442717233,-400.0,0.00036986,14]
[377564983,1754442717242,-400.0,0.00036986,14]
[377564984,1754442717251,-1728.93,0.00036986,14]
[377564985,1754442717261,-721.83,0.00036986,14]
[377564986,1754442717270,-842.87,0.00036986,14]
[377564987,1754442717281,-400.0,0.00036986,14]
[377564988,1754442717290,-1400.15,0.00036986,14]
[377564989,1754442717301,-2022.66,0.00036986,14]
[377564990,1754442717313,-400.0,0.00036986,14]
[377564991,1754442717323,-400.0,0.00036986,14]
[377564992,1754442717332,-400.0,0.00036986,14]
[377564993,1754442717343,-500.0,0.00036986,30]
[377564994,1754442717354,-1814.02,0.00036986,14]
[377564995,1754442717363,-400.0,0.00036986,14]
[377564996,1754442717372,-400.0,0.00036986,14]
[377564997,1754442717382,-1569.39,0.00036986,14]
[377564998,1754442717391,-699.33,0.00036986,14]
[377564999,1754442717401,-400.0,0.00036986,14]
[377565000,1754442717410,-1178.29,0.00036986,14]
[377565001,1754442717419,-1387.5,0.00036986,14]
[377565002,1754442717429,-492.33,0.00036986,14]
[377565003,1754442717439,-400.0,0.00036986,14]
[377565004,1754442717449,-400.0,0.00036986,14]
[377565005,1754442717459,-1463.21,0.00036986,14]
[377565006,1754442717469,-400.0,0.00036986,14]
[377565007,1754442717479,-544.52,0.00036986,14]
[377565008,1754442717489,-503.4,0.00036986,14]
[377565009,1754442717498,-400.1,0.00036986,14]
[377565010,1754442717508,-400.0,0.00036986,14]
[377565011,1754442717519,-1833.83,0.00036986,14]
[377565012,1754442717529,-1643.62,0.00036986,14]
[377565013,1754442717538,-1450.05,0.00036986,14]
[377565014,1754442717548,-847.42,0.00036986,14]
[377565015,1754442717558,-400.0,0.00036986,14]
[377565016,1754442717568,-483.54,0.00036986,14]
[377565017,1754442717578,-400.0,0.00036986,14]
[377565018,1754442717587,-1132.33,0.00036986,14]
[377565019,1754442717598,-400.0,0.00036986,14]
[377565020,1754442717607,-1000.0,0.00036986,30]
[377565021,1754442717617,-400.0,0.00036986,14]
[377565022,1754442717626,-404.42,0.00036986,14]
[377565023,1754442717636,-400.0,0.00036986,14]
[377565024,1754442717646,-400.0,0.00036986,14]
[377565025,1754442717656,-400.0,0.00036986,14]
[377565026,1754442717666,-1097.1,0.00036986,14]
[377565027,1754442717676,-400.0,0.00036986,14]
[377565028,1754442717685,-400.0,0.00036986,14]
[377565029,1754442717694,-2325.25,0.00036986,14]
[377565030,1754442717704,-1903.94,0.00036986,14]
[377565031,1754442717713,-1533.11,0.00036986,14]
[377565032,1754442717723,-660.51,0.00036986,14]
[377565033,1754442717732,-450.03,0.00036986,14]
[377565034,1754442717742,-460.28,0.00036986,14]
[377565035,1754442717751,-400.0,0.00036986,14]
[377565036,1754442717761,-400.0,0.00036986,14]
[377565037,1754442717770,-400.0,0.00036986,14]
[377565038,1754442717780,-1254.32,0.00036986,14]
[377565039,1754442717790,-1717.8,0.00036986,14]
[377565040,1754442717801,-400.0,0.00036986,14]
[377565041,1754442717811,-151.0,0.00036986,7]
[377565042,1754442717822,-400.0,0.00036986,14]
[377565043,1754442717831,-400.0,0.00036986,14]
[377565044,1754442717842,-1428.48,0.00036986,14]
[377565045,1754442717851,-733.28,0.00036986,14]
[377565046,1754442717861,-400.0,0.00036986,14]
[377565047,1754442717872,-400.0,0.00036986,14]
[377565048,1754442717883,-400.0,0.00036986,14]
[377565049,1754442717894,-827.0,0.00036986,14]
[377565050,1754442717904,-400.0,0.00036986,14]
[377565051,1754442717914,-470.72,0.00036986,14]
[377565052,1754442717923,-400.0,0.00036986,14]
[377565053,1754442717934,-400.0,0.00036986,14]
[377565054,1754442717943,-424.41,0.00036986,14]
[377565055,1754442717954,-1695.19,0.00036986,14]
[377565056,1754442717963,-1633.57,0.00036986,14]
[377565057,1754442717973,-1386.71,0.00036986,14]
[377565058,1754442717984,-526.05,0.00036986,14]
[377565059,1754442717993,-400.0,0.00036986,14]
[377565060,1754442718003,-1774.92,0.00036986,14]
[377565061,1754442718013,-400.0,0.00036986,14]
[377565062,1754442718022,-1821.42,0.00036986,14]
[377565063,1754442718032,-523.37,0.00036986,14]
[377565064,1754442718043,-400.0,0.00036986,14]
[377565065,1754442718052,-400.0,0.00036986,14]
[377565066,1754442718062,-537.16,0.00036986,14]
[377565067,1754442718072,-1326.6,0.00036986,14]
[377565068,1754442718081,-403.11,0.00036986,14]
[377565069,1754442718090,-1845.51,0.00036986,14]
[377565070,1754442718099,-400.0,0.00036986,14]
[377565071,1754442718109,-406.36,0.00036986,14]
[377565072,1754442718119,-547.22,0.00036986,14]
[377565073,1754442718128,-902.18,0.00036986,14]
[377565074,1754442718137,-400.0,0.00036986,14]
[377565075,1754442718147,-400.0,0.00036986,14]
[377565076,1754442718156,-400.0,0.00036986,14]
[377565077,1754442718165,-1145.28,0.00036986,14]
[377565078,1754442718175,-553.06,0.00036986,14]
[377565079,1754442718184,-400.0,0.00036986,14]
[377565080,1754442718193,-2832.17,0.00036986,14]
[377565081,1754442718203,-222.81723191,0.00036986,14]
[377565082,1754442718213,-2180.85,0.00036986,14]
[377565083,1754442718222,-2243.29,0.00036986,14]
[377565084,1754442718233,-1098.87,0.00036986,14]
[377565085,1754442718243,-400.0,0.00036986,14]
[377565086,1754442718253,-400.0,0.00036986,14]
[377565087,1754442718263,-1583.64,0.00036986,14]
[377565088,1754442718273,-1529.8,0.00036986,14]
[377565089,1754442718283,-400.0,0.00036986,14]
[377565090,1754442718292,-400.0,0.00036986,14]
[377565091,1754442718301,-400.0,0.00036986,14]
[377565092,1754442718312,-1102.58,0.00036986,14]
[377565093,1754442718322,-400.0,0.00036986,14]
[377565094,1754442718331,-1658.45,0.00036986,14]
[377565095,1754442718342,-977.09,0.00036986,14]
[377565096,1754442718351,-400.0,0.00036986,14]
[377565097,1754442718362,-473.22,0.00036986,14]
[377565098,1754442718372,-1718.03,0.00036986,14]
[377565099,1754442718381,-400.0,0.00036986,14]
[377565100,1754442718390,-400.0,0.00036986,14]
[377565101,1754442718400,-400.0,0.00036986,14]
[377565102,1754442718409,-1030.9,0.00036986,14]
[377565103,1754442718419,-400.0,0.00036986,14]
[377565104,1754442718428,-799.93,0.00036986,14]
[377565105,1754442718437,-413.39273181,0.00036986,14]
[377565106,1754442718447,-1782.82,0.00036986,14]
[377565107,1754442718456,-400.0,0.00036986,14]
[377565108,1754442718465,-1638.95,0.00036986,14]
[377565109,1754442718475,-625.21,0.00036986,14]
[377565110,1754442718484,-400.0,0.00036986,14]
[377565111,1754442718493,-400.0,0.00036986,14]
[377565112,1754442718503,-400.0,0.00036986,14]
[377565113,1754442718512,-2528.78,0.00036986,2]
[377565114,1754442718521,-1493.49,0.00036986,14]
[377565115,1754442718530,-2036.4,0.00036986,14]
[377565116,1754442718540,-410.9,0.00036986,14]
[377565117,1754442718549,-400.0,0.00036986,14]
[377565118,1754442718558,-400.0,0.00036986,14]
[377565119,1754442718567,-1210.7,0.00036986,14]
[377565120,1754442718577,-10006.13,0.00036986,14]
[377565121,1754442718587,-400.0,0.00036986,14]
[377565122,1754442718596,-1492.93,0.00036986,14]
[377565123,1754442718606,-1629.9,0.00036986,14]
[377565124,1754442718615,-1167.12,0.00036986,14]
[377565125,1754442718624,-539.61,0.00036986,14]
[377565126,1754442718633,-1588.35,0.00036986,14]
[377565127,1754442718643,-1152.25,0.00036986,14]
[377565128,1754442718652,-1739.77,0.00036986,14]
[377565129,1754442718662,-665.27,0.00036986,14]
[377565130,1754442718671,-400.0,0.00036986,14]
[377565131,1754442718680,-156.26641624,0.00036986,14]
[377565132,1754442718689,-1156.38,0.00036986,14]
[377565133,1754442718698,-400.0,0.00036986,14]
[377565134,1754442718708,-400.0,0.00036986,14]
[377565135,1754442718717,-1235.39,0.00036986,14]
[377565136,1754442718726,-400.0,0.00036986,14]
[377565137,1754442718735,-400.0,0.00036986,14]
[377565138,1754442718744,-1042.08,0.00036986,14]
[377565139,1754442718753,-555.31,0.00036986,14]
[377565140,1754442718762,-400.0,0.00036986,14]
[377565141,1754442718771,-610.62,0.00036986,14]
[377565142,1754442718781,-771.19,0.00036986,14]
[377565143,1754442718790,-2345.36,0.00036986,14]
[377565144,1754442718799,-1674.52,0.00036986,14]
[377565145,1754442718808,-855.1,0.00036986,14]
[377565146,1754442718818,-400.0,0.00036986,14]
[377565147,1754442718828,-571.85,0.00036986,14]
[377565148,1754442718837,-901.39,0.00036986,14]
[377565149,1754442718847,-1738.31,0.00036986,14]
[377565150,1754442718856,-400.0,0.00036986,14]
[377565151,1754442718865,-1645.48,0.00036986,14]
[377565152,1754442718874,-2776.05,0.00036986,14]
[377565153,1754442718883,-640.36,0.00036986,14]
[377565154,1754442718892,-421.1,0.00036986,14]
[377565155,1754442718901,-1250.35,0.00036986,14]
[377565156,1754442718910,-648.11,0.00036986,14]
[377565157,1754442718920,-400.0,0.00036986,14]
[377565158,1754442718929,-648.31,0.00036986,14]
[377565159,1754442718939,-400.0,0.00036986,14]
[377565160,1754442718949,-400.0,0.00036986,14]
[377565161,1754442718960,-541.69,0.00036986,14]
[377565162,1754442718969,-400.0,0.00036986,14]
[377565163,1754442718979,-481.1,0.00036986,14]
[377565164,1754442718988,-693.82,0.00036986,14]
[377565165,1754442718998,-400.0,0.00036986,14]
[377565166,1754442719009,-1143.9,0.00036986,14]
[377565167,1754442719018,-1216.09,0.00036986,14]
[377565168,1754442719027,-400.0,0.00036986,14]
[377565169,1754442719037,-2563.26,0.00036986,14]
[377565170,1754442719046,-1843.83,0.00036986,14]
[377565171,1754442719055,-929.85,0.00036986,14]
[377565172,1754442719064,-748.15,0.00036986,14]
[377565173,1754442719073,-400.0,0.00036986,14]
[377565174,1754442719082,-960.91,0.00036986,14]
[377565175,1754442719092,-953.28,0.00036986,14]
[377565176,1754442719101,-1108.19,0.00036986,14]
[377565177,1754442719110,-1077.76,0.00036986,14]
[377565178,1754442719120,-579.13,0.00036986,14]
[377565179,1754442719129,-3361.78,0.00036986,14]
[377565180,1754442719139,-400.0,0.00036986,14]
[377565181,1754442719149,-718.46,0.00036986,14]
[377565182,1754442719159,-451.54,0.00036986,14]
[377565183,1754442719290,-877.04,0.00036986,14]
[377565184,1754442719300,-536.36,0.00036986,14]
[377565185,1754442719310,-663.47,0.00036986,14]
[377565186,1754442719319,-2656.71,0.00036986,14]
[377565187,1754442719328,-400.0,0.00036986,14]
[377565188,1754442719338,-759.76,0.00036986,14]
[377565189,1754442719347,-1728.96,0.00036986,14]
[377565190,1754442719357,-400.0,0.00036986,14]
[377565191,1754442719367,-400.0,0.00036986,14]
[377565192,1754442719377,-400.0,0.00036986,14]
[377565193,1754442719386,-400.0,0.00036986,14]
[377565194,1754442719395,-1511.99,0.00036986,14]
[377565195,1754442719405,-1017.31,0.00036986,14]
[377565196,1754442719415,-1815.4,0.00036986,14]
[377565197,1754442719424,-1422.48,0.00036986,14]
[377565198,1754442719434,-400.0,0.00036986,14]
[377565199,1754442719443,-400.0,0.00036986,14]
[377565200,1754442719455,-400.0,0.00036986,14]
[377565201,1754442719464,-854.48,0.00036986,14]
[377565202,1754442719474,-1276.47,0.00036986,14]
[377565203,1754442719484,-350.35,0.00036986,14]
[377565204,1754442719494,-1666.11,0.00036986,14]
[377565205,1754442719503,-400.0,0.00036986,14]
[377565206,1754442719512,-400.0,0.00036986,14]
[377565207,1754442719522,-1981.27,0.00036986,14]
[377565208,1754442719531,-400.0,0.00036986,14]
[377565209,1754442719540,-400.0,0.00036986,14]
[377565210,1754442719551,-400.0,0.00036986,14]
[377565211,1754442719560,-400.0,0.00036986,14]
[377565212,1754442719569,-917.59,0.00036986,14]
[377565213,1754442719578,-400.0,0.00036986,14]
[377565214,1754442719587,-400.0,0.00036986,14]
[377565215,1754442719597,-1423.17,0.00036986,14]
[377565216,1754442719606,-635.16,0.00036986,14]
[377565217,1754442719615,-400.0,0.00036986,14]
[377565218,1754442719624,-1602.49,0.00036986,14]
[377565219,1754442719633,-400.0,0.00036986,14]
[377565220,1754442719642,-1993.92,0.00036986,14]
[377565221,1754442719651,-400.0,0.00036986,14]
[377565222,1754442719661,-462.48,0.00036986,14]
[377565223,1754442719670,-400.0,0.00036986,14]
[377565224,1754442719679,-400.0,0.00036986,14]
[377565225,1754442719689,-400.0,0.00036986,14]
[377565226,1754442719698,-1745.29,0.00036986,14]
[377565227,1754442719708,-400.0,0.00036986,7]
[377565228,1754442719717,-1505.87,0.00036986,14]
[377565229,1754442719727,-714.94,0.00036986,14]
[377565230,1754442719737,-400.0,0.00036986,14]
[377565231,1754442719746,-400.0,0.00036986,14]
[377565232,1754442719755,-400.0,0.00036986,14]
[377565233,1754442719765,-400.0,0.00036986,14]
[377565234,1754442719774,-400.0,0.00036986,14]
[377565235,1754442719783,-400.0,0.00036986,14]
[377565236,1754442719792,-1862.67,0.00036986,14]
[377565237,1754442719802,-1330.24,0.00036986,14]
[377565238,1754442719811,-1500.66,0.00036986,14]
[377565239,1754442719820,-1806.35,0.00036986,14]
[377565240,1754442719829,-400.0,0.00036986,14]
[377565241,1754442719838,-400.0,0.00036986,14]
[377565242,1754442719847,-1681.57,0.00036986,14]
[377565243,1754442719856,-1855.83,0.00036986,14]
[377565244,1754442719865,-400.0,0.00036986,14]
[377565245,1754442719874,-939.15,0.00036986,14]
[377565246,1754442719884,-204.73182132,0.00036986,14]
[377565247,1754442719893,-400.0,0.00036986,14]
[377565248,1754442719902,-400.0,0.00036986,14]
[377565249,1754442719910,-1183.54,0.00036986,14]
[377565250,1754442719919,-433.49,0.00036986,14]
[377565251,1754442719928,-400.0,0.00036986,14]
[377565252,1754442719937,-1796.76,0.00036986,14]
[377565253,1754442719947,-400.0,0.00036986,14]
[377565254,1754442719960,-426.54,0.00036986,14]
[377565255,1754442719971,-400.0,0.00036986,14]
[377565256,1754442719980,-540.41,0.00036986,14]
[377565257,1754442719989,-400.0,0.00036986,14]
[377565258,1754442719999,-1268.78,0.00036986,14]
[377565259,1754442720009,-783.57,0.00036986,14]
[377565260,1754442720018,-947.41,0.00036986,14]
[377565261,1754442720028,-400.0,0.00036986,14]
[377565262,1754442720037,-400.0,0.00036986,14]
[377565263,1754442720047,-1722.77,0.00036986,14]
[377565264,1754442720060,-400.0,0.00036986,14]
[377565265,1754442720070,-1648.95,0.00036986,14]
[377565266,1754442720085,-1349.25,0.00036986,14]
[377565267,1754442720101,-609.22,0.00036986,14]
[377565268,1754442720110,-607.57,0.00036986,14]
[377565269,1754442720120,-460.65,0.00036986,14]